[Event "5th Sharjah Masters 2022"]
[Site "Sharjah"]
[Date "2022.05.26"]
[Round "6.4"]
[White "Yilmaz, Mustafa"]
[Black "Martirosyan, Haik M."]
[Result "1/2-1/2"]
[ECO "D36"]
[WhiteElo "2631"]
[BlackElo "2652"]
[Annotator "TA"]
[PlyCount "123"]
[EventDate "2022.05.21"]
[EventType "swiss"]
[EventCountry "UAE"]
[SourceTitle "playchess.com"]
[Source "ChessBase"]
[SourceQuality "1"]
[TimeControl "5400+30"]

{[%evp 22,123,28,21,28,22,32,32,28,25,28,28,25,17,26,21,26,27,26,27,18,30,22,28,19,0,31,0,23,8,41,48,48,41,49,45,48,37,48,45,37,2,2,2,2,2,2,0,0,2,2,2,22,2,2,2,9,2,2,2,9,12,17,25,33,0,36,28,33,30,22,0,29,14,12,0,15,16,61,0,6,0,23,0,0,0,0,0,0,0,0,0,18,0,0,0,0,0,0,0,0,0,0,0]} 1. Nf3 {[%emt 0:00:03]} d5 {[%emt 0:00:15]} 2. d4 {[%emt 0:00:08]} Nf6 {[%emt 0:00:08]} 3. c4 {[%emt 0:00:06]} e6 {[%emt 0:00:13]} 4. Nc3 {[%emt 0:00:07]} Nbd7 {[%emt 0:00:34]} 5. cxd5 {[%emt 0:00:25]} exd5 {[%emt 0:00:07]} 6. Bg5 {[%emt 0:00:06]} c6 {[%emt 0:00:15]} 7. Qc2 {[%emt 0:00:22]} Be7 {[%emt 0:00:19]} 8. e3 {[%emt 0:01:05]} h6 {[%emt 0:00:26]} 9. Bh4 {[%emt 0:00:17]} O-O {[%emt 0:00:20]} 10. Bd3 {[%emt 0:00:11]} Re8 {[%emt 0:00:20]} 11. O-O {[%emt 0:00:33]} Ne4 {[%emt 0:00:24]} 12. Bxe4 {[%emt 0:00:28]} ({Don't go for} 12. Nxe4 $2 dxe4 13. Bxe4 (13. Bxe7 $2 Qxe7 14. Bxe4 Qxe4 $19) 13... Bxh4 $19) 12... Bxh4 {[%emt 0:00:08] D36: Queen's Gambit Declined: Exchange Variation: Main line (5 Bg5 c6 6 Qc2).} 13. Bh7+ {[%emt 0:00:13]} Kf8 {[%emt 0:00:26]} 14. Nxh4 {[%emt 0:00:36]} Qxh4 {[%emt 0:00:11] White is slightly better.} 15. Bd3 {[%emt 0:00:16]} Qe7 {[%emt 0:00:15] [#]} 16. Rfe1 $146 {[%emt 0:00:15]} ({Predecessor:} 16. a3 Nb6 17. Ne2 Bg4 18. Nf4 Nc8 19. Rfe1 g5 20. Ne2 Bxe2 21. Rxe2 Qd8 22. f3 {½-½ (52) Boreika,V (2211)-Viskontas,J (2185) ICCF email 2020}) 16... Nf6 {[%emt 0:00:51]} 17. f3 {[%emt 0:01:25]} Bd7 {[%emt 0:00:36]} 18. Rad1 {[%emt 0:01:40]} c5 {[%emt 0:05:25]} 19. Bf1 {[%emt 0:12:10]} Bc6 {[%emt 0:05:09]} 20. dxc5 {[%emt 0:23:10]} Qxc5 {[%emt 0:00:11]} 21. Qd3 {[%emt 0:00:12]} Qb4 {[%emt 0:06:51]} 22. Rd2 {[%emt 0:03:43]} Qh4 {[%emt 0:02:29]} 23. Rdd1 {[%emt 0:04:41]} Qb4 {[%emt 0:00:36]} 24. Rd2 {[%emt 0:00:36]} Qh4 {[%emt 0:00:23]} 25. Ree2 {[%emt 0:00:05]} a5 {[%emt 0:21:01]} 26. Qd4 {[%emt 0:02:29]} Qxd4 {[%emt 0:00:46]} 27. Rxd4 {[%emt 0:00:43]} Re5 {[%emt 0:08:11]} 28. Kf2 {[%emt 0:04:52]} Rae8 {[%emt 0:01:16]} 29. Re1 {[%emt 0:01:41]} g5 {[%emt 0:01:52][%cal Bg7g5,Bg5g4][%mdl 32]} 30. g3 {[%emt 0:13:04]} h5 {[%emt 0:03:41]} 31. h4 {[%emt 0:02:01]} g4 {[%emt 0:01:56]} 32. f4 {[%emt 0:00:20]} Ne4+ {[%emt 0:01:55]} 33. Nxe4 {[%emt 0:12:24]} Rxe4 {[%emt 0:00:06]} 34. Rdd1 {[%emt 0:09:14]} Rb4 {[%emt 0:06:47]} 35. Rd2 {[%emt 0:00:04]} Ke7 {[%emt 0:10:54]} 36. Rc1 {[%emt 0:01:16]} Kd6 {[%emt 0:02:42]} 37. Bg2 {[%emt 0:01:48]} f5 {[%emt 0:01:12]} 38. Rc3 {[%emt 0:00:24]} Rb5 {[%emt 0:01:18]} 39. Rdc2 {[%emt 0:03:12]} Rb6 {[%emt 0:01:58]} 40. Bf1 {[%emt 0:00:25]} Bd7 {[%emt 0:00:29]} 41. Rd2 {[%emt 0:00:33]} Be6 {[%emt 0:02:28]} 42. Ra3 {[%emt 0:01:37]} Ra8 $1 {[%emt 0:00:06]} 43. Bg2 {[%emt 0:00:15]} (43. Ra4 $5 {[%cal Re3e4]}) 43... Rb5 {[%emt 0:01:31]} 44. e4 {[%emt 0:01:33]} fxe4 {[%emt 0:00:07]} 45. Bxe4 {[%emt 0:00:05]} Bf7 {[%emt 0:00:46]} 46. Re3 {[%emt 0:00:33]} Rc5 {[%emt 0:01:29]} 47. Bf5 {[%emt 0:00:35]} b5 {[%emt 0:01:17]} 48. Re5 {[%emt 0:00:10]} b4 {[%emt 0:01:12]} 49. Bd3 {[%emt 0:00:18]} Ra7 {[%emt 0:02:51]} 50. Ke3 {[%emt 0:01:47] White is more active.} (50. Rg5 $1 $14) 50... Rc1 {[%emt 0:00:54]} 51. Be4 {[%emt 0:00:21][%cal Re4d5]} Kc5 {[%emt 0:02:09]} 52. Rc2+ {[%emt 0:00:41]} (52. Ke2 {is more complex.} Rd7 53. b3 Rc3 54. Kf2) 52... Rxc2 {[%emt 0:00:06] The position is equal.} 53. Bxc2 $11 {[%emt 0:00:01][%mdl 4096] Endgame KRB-KRB} a4 {[%emt 0:00:35]} 54. a3 {[%emt 0:00:21]} bxa3 {[%emt 0:02:19]} 55. bxa3 {[%emt 0:00:02]} Rb7 {[%emt 0:00:54]} 56. Kd2 {[%emt 0:01:04]} Kd4 {[%emt 0:00:34]} 57. Re3 {[%emt 0:00:33]} ({Don't play} 57. Bxa4 Bg6 58. Be8 Bxe8 59. Rxe8 Rb3 $15) 57... Rb2 {[%emt 0:00:56][%cal Ob2c2] [#] ( -> ...Rxc2+!)} 58. Rd3+ {[%emt 0:00:16]} Kc4 {[%emt 0:00:51]} 59. Rc3+ {[%emt 0:00:22]} Kd4 {[%emt 0:00:07] Strongly threatening ...Bg6.} 60. Rd3+ {[%emt 0:00:14]} Kc4 {[%emt 0:00:01]} 61. Rc3+ {[%emt 0:00:27]} Kd4 {[%emt 0:00:01] [#] Hoping for ...Bg6.} 62. Rd3+ {[%emt 0:02:52] Weighted Error Value: White=0.06 (flawless) /Black=0.06 (flawless)} 1/2-1/2

[Event "5th Sharjah Masters 2022"]
[Site "Sharjah"]
[Date "2022.05.26"]
[Round "6.5"]
[White "Idani, Pouya"]
[Black "Sarana, Alexey"]
[Result "1/2-1/2"]
[ECO "B90"]
[WhiteElo "2635"]
[BlackElo "2675"]
[Annotator "TA"]
[PlyCount "95"]
[EventDate "2022.05.21"]
[EventType "swiss"]
[EventCountry "UAE"]
[SourceTitle "playchess.com"]
[Source "ChessBase"]
[SourceQuality "1"]
[TimeControl "5400+30"]

{[%evp 16,95,0,-14,47,45,62,60,52,54,60,52,63,22,68,-35,-18,-24,-33,-40,-39,-31,0,0,0,0,12,0,0,0,0,0,0,0,0,0,0,0,0,0,0,0,0,0,0,0,0,0,0,0,0,0,31,47,145,150,132,87,84,0,0,0,100,104,109,103,108,106,176,108,100,130,136,132,129,40,72,0,117,0,73,0]} 1. e4 {[%emt 0:00:02]} c5 {[%emt 0:00:05]} 2. Nf3 {[%emt 0:00:03]} d6 {[%emt 0:00:03]} 3. d4 {[%emt 0:00:05]} cxd4 {[%emt 0:00:03]} 4. Nxd4 {[%emt 0:00:05]} Nf6 {[%emt 0:00:03]} 5. Nc3 {[%emt 0:00:05]} a6 {[%emt 0:00:05]} 6. Be3 {[%emt 0:00:04]} e5 {[%emt 0:00:18]} 7. Nb3 {[%emt 0:00:05]} Be6 {[%emt 0:00:28]} 8. Qd2 {[%emt 0:00:09]} Nbd7 $1 {[%emt 0:00:54] 8...Nbd7 is better than 8...Be7.} 9. f4 {[%emt 0:00:11]} Rc8 {[%emt 0:06:59] B90: Sicilian Najdorf: Unusual White 6th moves, 6 Be3 Ng4 and 6 Be3 e5.} (9... b5 $1 $11) 10. f5 $14 {[%emt 0:00:19] is the legacy move (10.0-0-0).} Bc4 {[%emt 0:00:06]} 11. Bxc4 {[%emt 0:00:31]} Rxc4 {[%emt 0:00:02] White is slightly better.} 12. Qd3 {[%emt 0:00:49]} Qc8 {[%emt 0:08:10]} 13. O-O-O {[%emt 0:01:49] [#]} Be7 $146 {[%emt 0:01:43][%cal Oc4c3]} ({Predecessor:} 13... b5 14. Nd2 Rc7 15. Kb1 Be7 16. Rhg1 b4 17. Nd5 Nxd5 18. exd5 Qb7 19. g4 Qb5 {½-½ (36) Abolins Abols,D (2128)-Milde,L (2257) ICCF email 2017}) 14. Kb1 {[%emt 0:09:54]} b5 {[%emt 0:01:14]} (14... Rxc3 $1 $11 15. bxc3 Qc6) 15. Na5 {[%emt 0:07:55] [#]} (15. Nd2 $1 $14) 15... Rxc3 $1 $15 {[%emt 0:04:55]} 16. Qxc3 {[%emt 0:02:25]} Qxc3 {[%emt 0:00:30]} 17. bxc3 {[%emt 0:00:04]} Nxe4 {[%emt 0:00:05] Pair of Knights!} 18. Kb2 {[%emt 0:03:45]} Ndc5 {[%emt 0:16:08]} 19. Bxc5 {[%emt 0:03:01]} Nxc5 {[%emt 0:00:11]} 20. Nc6 {[%emt 0:05:07]} f6 {[%emt 0:01:12]} 21. Rhe1 {[%emt 0:05:32]} Kd7 {[%emt 0:00:57]} 22. Nb4 {[%emt 0:01:19]} Rc8 {[%emt 0:15:18]} 23. Re3 {[%emt 0:03:02]} Na4+ {[%emt 0:01:36]} 24. Kb3 {[%emt 0:02:10]} a5 {[%emt 0:01:15]} 25. Nd5 {[%emt 0:00:16]} Rc4 {[%emt 0:00:08]} 26. Rh3 $1 {[%emt 0:09:56]} h6 {[%emt 0:00:02]} 27. g3 {[%emt 0:04:26]} Nc5+ {[%emt 0:01:17]} 28. Kb2 {[%emt 0:00:29]} Na4+ {[%emt 0:00:03]} 29. Kb3 $1 {[%emt 0:03:10]} Nc5+ {[%emt 0:05:20]} 30. Ka3 {[%emt 0:07:29]} Ra4+ {[%emt 0:16:11]} 31. Kb2 {[%emt 0:00:15][%cal Oc3c4]} Re4 {[%emt 0:00:03]} 32. Rh4 {[%emt 0:04:24]} Re2 {[%emt 0:00:02]} 33. a3 {[%emt 0:03:01]} Rf2 {[%emt 0:02:38]} 34. c4 {[%emt 0:06:29]} b4 {[%emt 0:00:01]} (34... bxc4 $14 35. Rxc4 Rxh2) 35. axb4 $16 {[%emt 0:01:04]} axb4 {[%emt 0:00:01]} 36. Nxb4 {[%emt 0:02:50]} Na4+ {[%emt 0:01:26]} 37. Kb3 {[%emt 0:00:08]} Nc5+ {[%emt 0:00:02]} 38. Kb2 {[%emt 0:00:15]} Na4+ $1 {[%emt 0:00:02]} 39. Ka3 {[%emt 0:01:31]} Nc5 {[%emt 0:01:06]} 40. Ra1 {[%emt 0:00:12]} Rxf5 {[%emt 0:01:49]} 41. Kb2 {[%emt 0:00:04]} Rf3 {[%emt 0:03:16]} (41... Bf8 $16 {might work better.}) 42. Ra7+ {[%emt 0:03:23]} ({White should try} 42. Nd5 $18 {aiming for Ra7+.} Ke8 43. Ra8+ Bd8 44. Nb4) 42... Ke8 {[%emt 0:01:38]} 43. Nd5 {[%emt 0:01:49]} Bf8 {[%emt 0:00:02] [#]} 44. g4 $1 {[%emt 0:01:01] White is more active.} e4 {[%emt 0:02:54]} 45. Nc7+ {[%emt 0:03:23]} (45. Rh5 $16) 45... Kd8 {[%emt 0:04:01] Strongly threatening ...e3.} 46. Nd5 {[%emt 0:02:12]} Ke8 {[%emt 0:01:11]} 47. Nc7+ {[%emt 0:00:37]} Kd8 {[%emt 0:02:23] [#] Hoping for ...e3.} 48. Nd5 {[%emt 0:00:37] Weighted Error Value: White=0.18 (very precise) /Black=0.12 (very precise)} ({White should play} 48. Kc1 $1 $16) 1/2-1/2

[Event "5th Sharjah Masters 2022"]
[Site "Sharjah"]
[Date "2022.05.26"]
[Round "6.6"]
[White "Niemann, Hans Moke"]
[Black "Muradli, Mahammad"]
[Result "1-0"]
[ECO "D31"]
[WhiteElo "2656"]
[BlackElo "2539"]
[Annotator "TA"]
[PlyCount "61"]
[EventDate "2022.05.21"]
[EventType "swiss"]
[EventCountry "UAE"]
[SourceTitle "playchess.com"]
[Source "ChessBase"]
[SourceQuality "1"]
[TimeControl "5400+30"]

{[%evp 9,61,25,34,21,58,56,74,13,18,0,1,-23,40,21,63,100,103,70,61,79,103,96,102,93,96,88,87,93,91,93,107,89,89,100,84,31,87,93,168,179,239,90,90,90,90,90,163,163,143,159,139,142,196,193]} 1. d4 {[%emt 0:00:05]} d5 {[%emt 0:01:04]} 2. c4 {[%emt 0:00:11]} e6 {[%emt 0:00:04]} 3. Nc3 {[%emt 0:02:06]} a6 {[%emt 0:00:07]} 4. cxd5 {[%emt 0:01:46]} exd5 {[%emt 0:00:16]} 5. Nf3 {[%emt 0:01:18]} c6 {[%emt 0:00:19]} 6. Qb3 {[%emt 0:01:36] D31: Queen's Gambit Declined: Semi-Slav without ...Nf6 (+ Marshall Gambit and Noteboom) and Exchange Variation lines without ...Nf6.} Bd6 {[%emt 0:10:23]} 7. e4 {[%emt 0:07:13]} dxe4 {[%emt 0:04:04]} 8. Ng5 {[%emt 0:02:44]} ({White should play} 8. Nxe4 $16 {Bc4 is the strong threat.} Qe7 9. Qe3) 8... Nh6 $1 $11 {[%emt 0:03:40] [#]} 9. Be3 $146 {[%emt 0:09:27]} ({Predecessor:} 9. Ngxe4 Nf5 10. Bc4 O-O 11. Be3 b5 12. Bd3 Be6 13. Qd1 Nxe3 14. fxe3 Qh4+ 15. g3 {1-0 (32) Sarana,A (2654)-David,A (2428) Chess.com INT 2020}) 9... O-O {[%emt 0:07:29]} 10. O-O-O {[%emt 0:01:25]} Ng4 {[%emt 0:25:43]} (10... Be7 $11 11. Ngxe4 (11. Ncxe4 Nd7 $11) 11... Nf5) 11. Ncxe4 $14 {[%emt 0:04:00][%cal Og5f7] Threatens to win with Nxf7!} Nxe3 {[%emt 0:08:13]} 12. fxe3 {[%emt 0:02:51][%cal Og5f7] Black must now prevent Nxf7!} b5 {[%emt 0:00:54]} 13. Bd3 $1 $36 {[%emt 0:06:31][%mdl 2048] Black is under pressure.} Be7 $1 {[%emt 0:04:42]} 14. h4 {[%emt 0:00:58][%cal Bh2h4,Bh4h5][%mdl 32]} g6 {[%emt 0:05:06]} 15. Rdf1 {[%emt 0:03:12][%cal Rf1f7] 0x0.0008421a0beadp-1022s more active pieces.} Qd5 {[%emt 0:00:06]} 16. Qxd5 {[%emt 0:08:00]} cxd5 {[%emt 0:00:02]} 17. Nf6+ {[%emt 0:00:04]} Bxf6 {[%emt 0:01:02]} 18. Rxf6 {[%emt 0:00:03]} Ra7 {[%emt 0:07:18]} 19. h5 {[%emt 0:03:02][%cal Rh5g6]} h6 {[%emt 0:01:30]} 20. Nf3 {[%emt 0:07:57]} Kg7 {[%emt 0:00:06]} 21. Rd6 {[%emt 0:03:27]} Rd7 {[%emt 0:01:13]} 22. Rxd7 {[%emt 0:00:41]} (22. Rb6 $16 Rb7 23. Rxb7 Bxb7 24. Nh4) 22... Nxd7 {[%emt 0:03:02]} (22... Bxd7 $14 23. Nh4 g5 24. Nf5+ Bxf5 25. Bxf5 Nc6) 23. Nh4 $16 {[%emt 0:00:04]} Re8 {[%emt 0:11:32]} (23... gxh5 $16 24. Nf5+ Kg6) 24. hxg6 $18 {[%emt 0:00:07]} Nf8 {[%emt 0:00:03]} (24... fxg6 $142 25. Kd2 (25. Bxg6 Rf8 $16) (25. Nxg6 Nf8 $16) 25... Nf8) 25. Kd2 {[%emt 0:00:34]} (25. gxf7 $18 {and the rest is easy.} Rd8 26. Kd2) 25... Nxg6 $16 {[%emt 0:01:35]} 26. Nxg6 {[%emt 0:00:50]} fxg6 {[%emt 0:00:01] KRB-KRB} 27. Rc1 {[%emt 0:00:01]} Bg4 {[%emt 0:00:45]} (27... h5 $16 {was called for.}) 28. Rc7+ $18 {[%emt 0:00:56] White is clearly better.} Kf6 {[%emt 0:00:05] [#]} 29. Rc5 $1 {[%emt 0:00:08]} Be6 {[%emt 0:02:43]} 30. Rc6 {[%emt 0:00:05]} Ra8 {[%emt 0:00:01] [#]} (30... b4 $16 31. Rxa6 (31. Bxa6 Ke7 $16) 31... h5) 31. e4 $1 {[%emt 0:00:21] Weighted Error Value: White=0.18 (very precise) /Black=0.22 (precise)} 1-0

[Event "5th Sharjah Masters 2022"]
[Site "Sharjah"]
[Date "2022.05.26"]
[Round "6.7"]
[White "Hakobyan, Aram"]
[Black "Fedoseev, Vladimir"]
[Result "1/2-1/2"]
[ECO "B42"]
[WhiteElo "2615"]
[BlackElo "2701"]
[Annotator "TA"]
[PlyCount "108"]
[EventDate "2022.05.21"]
[EventType "swiss"]
[EventCountry "UAE"]
[SourceTitle "playchess.com"]
[Source "ChessBase"]
[SourceQuality "1"]
[TimeControl "5400+30"]

{[%evp 14,108,45,33,60,26,32,21,57,31,38,23,37,15,19,0,0,0,14,21,16,-41,-42,-40,-40,-39,-34,-37,-43,-40,-27,-36,-28,-68,-54,-64,-64,-102,-102,-110,-115,-85,-97,-113,-108,-127,-104,-163,-167,-242,-252,-247,-241,-314,-299,-210,-126,-132,-126,-125,-129,-126,-125,-187,-10,-29,-6,-9,-6,-6,0,0,0,0,0,0,0,0,0,0,0,0,0,0,0,0,0,0,0,0,0,0,0,0,0,0,0]} 1. e4 {[%emt 0:00:05] Avrukh,B} c5 {[%emt 0:00:27]} 2. Nf3 {[%emt 0:00:08]} e6 {[%emt 0:00:10]} 3. d4 {[%emt 0:00:35]} cxd4 {[%emt 0:00:09]} 4. Nxd4 {[%emt 0:00:03]} a6 {[%emt 0:00:10]} 5. Bd3 {[%emt 0:01:45]} Bc5 {[%emt 0:01:47]} 6. Nb3 {[%emt 0:00:12]} Ba7 {[%emt 0:00:06]} 7. O-O {[%emt 0:03:35]} Nc6 {[%emt 0:03:46]} 8. Qg4 {[%emt 0:06:39]} Qf6 {[%emt 0:01:05] B42: Sicilian: Kan Variation: 5 Bd3.} 9. N1d2 {[%emt 0:07:36] [#]} e5 $146 {[%emt 0:06:14]} ({Predecessor:} 9... Ne5 10. Qg3 Ne7 11. Nc4 Nxc4 12. Bxc4 Nc6 13. Bf4 e5 14. Be3 O-O 15. Rad1 Bxe3 16. Qxe3 {1-0 (58) Adams,M (2729)-Smirin,I (2649) Kemer 2007 CBM 121 [Avrukh,B]}) 10. Qg3 {[%emt 0:02:31]} Nge7 {[%emt 0:03:32]} 11. Nc4 {[%emt 0:02:28]} O-O {[%emt 0:05:48]} (11... d5 $2 12. exd5 Nxd5 13. Bg5 $18) 12. Bg5 {[%emt 0:08:18]} Qe6 {[%emt 0:00:07]} 13. Ne3 {[%emt 0:00:49][%cal Oe3d5] Against f5} h6 {[%emt 0:08:06]} 14. Bc4 {[%emt 0:13:23]} Qg6 {[%emt 0:02:08]} 15. Bxe7 {[%emt 0:00:05]} Qxg3 {[%emt 0:00:06]} 16. hxg3 {[%emt 0:00:03]} Nxe7 {[%emt 0:00:09]} 17. Nf5 {[%emt 0:08:03]} (17. Nd5 $11 Nxd5 18. Bxd5) 17... Nxf5 $15 {[%emt 0:00:37]} 18. exf5 {[%emt 0:00:03]} d6 {[%emt 0:01:58]} 19. g4 {[%emt 0:00:57]} h5 {[%emt 0:03:56]} 20. gxh5 {[%emt 0:00:47]} Bxf5 {[%emt 0:00:06] ...Rac8 is the strong threat.} 21. Bd5 {[%emt 0:04:03]} Rac8 {[%emt 0:00:54][%cal Ba8c8,Bc8c7,Bc7c2][%mdl 32]} 22. c3 {[%emt 0:01:56]} Rc7 {[%emt 0:01:25]} 23. Nd2 {[%emt 0:06:58]} Bg4 {[%emt 0:05:02]} 24. Bf3 {[%emt 0:05:45]} Bxf3 {[%emt 0:01:05]} 25. Nxf3 {[%emt 0:00:02]} e4 $1 {[%emt 0:03:28]} 26. Nd4 {[%emt 0:03:19]} Bxd4 {[%emt 0:01:38]} 27. cxd4 $17 {[%emt 0:00:09][%mdl 4096] Endgame KRR-KRR} Rc2 {[%emt 0:00:05]} 28. Rae1 {[%emt 0:00:08]} Re8 {[%emt 0:02:18]} 29. a4 {[%emt 0:04:04]} f5 {[%emt 0:08:46][%cal Bf7f5,Bf5f4][%mdl 32]} 30. b3 {[%emt 0:01:41] [#]} (30. Kh2 $17 {might work better.}) 30... Kh7 $1 $19 {[%emt 0:03:38]} 31. Re3 {[%emt 0:01:35] [#]} (31. Kh2 {was necessary.}) 31... f4 $1 {[%emt 0:00:09]} 32. Rh3 {[%emt 0:00:02]} Kh6 {[%emt 0:01:10]} 33. Re1 {[%emt 0:04:32]} d5 {[%emt 0:00:48]} 34. f3 {[%emt 0:00:37]} Rd2 {[%emt 0:10:59]} 35. Rh4 {[%emt 0:02:26]} Rxd4 {[%emt 0:00:24] Threatens to win with ...e3.} 36. Rxf4 {[%emt 0:02:13] [#]} exf3 $1 {[%emt 0:00:32]} 37. Rxe8 {[%emt 0:00:13]} Rxf4 $17 {[%emt 0:00:11] KR-KR} 38. g3 {[%emt 0:09:16]} (38. gxf3 $17 Rxf3 39. Rh8+ Kg5 40. Rg8) 38... Rb4 $2 {[%emt 0:03:52]} (38... Re4 $19 39. Rf8 Kxh5) 39. Re5 $11 {[%emt 0:00:17]} d4 {[%emt 0:04:52]} (39... Rxb3 $5 {[%cal Rb3b2]} 40. Kf2 Rb4 41. Kxf3 Rxa4 $17) 40. Kf2 {[%emt 0:00:40] The position is equal.} d3 {[%emt 0:02:02] And now ...Rd4 would win.} 41. Rd5 {[%emt 0:00:13] Inhibits Rd4.} Rxb3 {[%emt 0:00:07] Strongly threatening ...Ra3.} 42. g4 {[%emt 0:00:40]} d2 {[%emt 0:03:33]} 43. Kg3 {[%emt 0:01:22]} Rb4 {[%emt 0:07:14]} 44. Rd6+ {[%emt 0:01:32]} g6 {[%emt 0:01:09][%cal Ob4g4] aiming for ...Rxg4+!} 45. Kxf3 {[%emt 0:00:29]} d1=Q+ {[%emt 0:02:48]} 46. Rxd1 {[%emt 0:00:01] Black must now prevent Rd6.} gxh5 {[%emt 0:00:09]} 47. Rd6+ {[%emt 0:00:02]} Kg5 {[%emt 0:00:01]} 48. gxh5 {[%emt 0:01:02]} Kxh5 {[%emt 0:00:29]} 49. Ke3 {[%emt 0:00:14]} Kg5 {[%emt 0:03:04]} 50. Kd3 {[%emt 0:00:01]} Kf5 {[%emt 0:00:25]} 51. Kc3 {[%emt 0:00:05]} Rb1 {[%emt 0:00:04]} 52. Kc2 {[%emt 0:00:13]} Rb4 {[%emt 0:00:17]} 53. Kc3 {[%emt 0:00:04]} Rxa4 {[%emt 0:01:38]} 54. Rb6 {[%emt 0:00:07]} Ke5 {[%emt 0:02:47] And White is the lucky defender.  Weighted Error Value: White=0.14 (very precise) /Black=0.11 (very precise)} 1/2-1/2

[Event "5th Sharjah Masters 2022"]
[Site "Sharjah"]
[Date "2022.05.26"]
[Round "6.8"]
[White "Sargissian, Gabriel"]
[Black "Sethuraman, S.P."]
[Result "1/2-1/2"]
[ECO "D11"]
[WhiteElo "2694"]
[BlackElo "2613"]
[Annotator "TA"]
[PlyCount "66"]
[EventDate "2022.05.21"]
[EventType "swiss"]
[EventCountry "UAE"]
[SourceTitle "playchess.com"]
[Source "ChessBase"]
[SourceQuality "1"]
[TimeControl "5400+30"]

{[%evp 9,66,23,37,31,30,32,36,19,26,0,0,11,6,0,0,0,0,0,5,0,37,0,0,0,32,7,9,0,0,0,0,-33,0,0,0,0,0,0,9,9,6,0,0,-8,0,0,0,0,0,0,0,0,0,0,0,0,0,0,0]} 1. d4 {[%emt 0:00:04]} d5 {[%emt 0:00:28]} 2. c4 {[%emt 0:00:06]} c6 {[%emt 0:00:05]} 3. Nf3 {[%emt 0:00:07]} Nf6 {[%emt 0:00:07]} 4. e3 {[%emt 0:00:06]} Bg4 {[%emt 0:00:11]} 5. h3 {[%emt 0:00:11]} Bh5 {[%emt 0:00:06]} 6. g4 {[%emt 0:04:14] D11: Slav Defence: 3 Nf3 sidelines and 3...Nf6 4 e3 Bg4.} Bg6 {[%emt 0:00:19]} 7. Ne5 {[%emt 0:01:25]} Nbd7 {[%emt 0:00:43]} 8. Nxg6 {[%emt 0:01:26] White is slightly better.} hxg6 {[%emt 0:00:06]} 9. cxd5 {[%emt 0:02:40]} cxd5 {[%emt 0:01:05]} 10. Nc3 {[%emt 0:00:56]} e6 {[%emt 0:00:43]} 11. g5 {[%emt 0:04:45]} Ne4 {[%emt 0:12:06]} 12. Nxe4 {[%emt 0:00:19]} dxe4 {[%emt 0:00:12] [#]} 13. h4 $146 {[%emt 0:04:00]} ({Predecessor:} 13. Bg2 Rh4 14. f4 exf3 15. Qxf3 Bb4+ 16. Kd1 Qxg5 17. Rf1 f5 18. Qxb7 Rb8 19. Qc6 {½-½ (41) Van Wely,L (2654)-Vallejo Pons,F (2691) Bangkok 2016}) 13... Bb4+ {[%emt 0:11:49]} 14. Bd2 {[%emt 0:00:18]} Qa5 {[%emt 0:00:52][%cal Od7e5]} 15. a3 {[%emt 0:07:27]} Bxd2+ {[%emt 0:01:31]} 16. Qxd2 {[%emt 0:00:06]} Qxd2+ {[%emt 0:03:43]} 17. Kxd2 {[%emt 0:00:05]} Nb6 {[%emt 0:06:05]} 18. Rc1 {[%emt 0:09:23]} Nc8 $1 {[%emt 0:00:33]} 19. Ke2 {[%emt 0:20:43]} Nd6 {[%emt 0:02:32]} 20. d5 {[%emt 0:00:34]} Ke7 {[%emt 0:22:23]} 21. dxe6 {[%emt 0:05:41] The position is equal.} Rac8 {[%emt 0:00:48]} 22. Rxc8 {[%emt 0:03:30]} Rxc8 $11 {[%emt 0:00:10][%mdl 4096] Endgame KRB-KRN} 23. Kd2 {[%emt 0:02:25] Prevents Rc2+.} Kxe6 {[%emt 0:01:09]} 24. Bh3+ {[%emt 0:02:32]} Nf5 {[%emt 0:00:08]} 25. f4 {[%emt 0:00:18]} Rd8+ {[%emt 0:05:24]} ({Much less strong is} 25... exf3 26. e4 Rd8+ 27. Kc2 $14 (27. Ke1 Ke5 $14)) 26. Ke2 {[%emt 0:04:01]} Rd3 {[%emt 0:01:10]} 27. Bxf5+ {[%emt 0:00:06]} Kxf5 {[%emt 0:00:04] KR-KR} 28. Rc1 {[%emt 0:00:06]} Rb3 {[%emt 0:01:21]} 29. Rc7 $1 {[%emt 0:00:06]} Rxb2+ {[%emt 0:01:26]} 30. Kd1 {[%emt 0:00:07]} Ke6 {[%emt 0:09:55]} 31. Rc4 {[%emt 0:00:31]} Kf5 {[%emt 0:00:07]} 32. Rc7 {[%emt 0:00:04]} Ke6 {[%emt 0:05:23]} 33. Rc4 {[%emt 0:00:10]} Kd5 {[%emt 0:14:16] Weighted Error Value: White=0.04 (flawless) /Black=0.05 (flawless)} 1/2-1/2